Cogmind - Beta 10.2 @@@ ROGUE MODE // 2020.12.28 @ 00:06:29 // AFD2018/Launchers Player: Michael Result: Self-destructed Performance ------------- Evolutions (0) 0 Regions Visited (4) 800 Robots Destroyed (17) 85 Value Destroyed (300) 300 Prototype IDs (0) 0 Alien Tech Used (0) 0 Bonus (300) 300 TOTAL SCORE: 1485 Bonus ------- Aligned with FarCom 300 Cogmind --------- Core Integrity 6/250 Matter 112/300 Energy 90/250 System Corruption 2% Temperature Cool (0) Movement Rolling (90) Ox1 Location -9/Mines Parts ------- > --- POWER (1) -------- Ion Engine > --- PROPULSION (2) --- Wheel Wheel > --- UTILITY (2) ------ High-capacity Storage Unit Improved Signal Interpreter > --- WEAPON (2) ------- Mini Grenade Launcher > --- INVENTORY (12) --- Medium Storage Unit Grenade Launcher Grenade Launcher Grenade Launcher Grenade Launcher Grenade Launcher Peak State ------------ > --- POWER ------------ Ion Engine > --- PROPULSION ------- Wheel Wheel > --- UTILITY ---------- High-capacity Storage Unit Improved Signal Interpreter > --- WEAPON ----------- Mini Grenade Launcher > --- INVENTORY -------- Medium Storage Unit Grenade Launcher Grenade Launcher Grenade Launcher Grenade Launcher Grenade Launcher [Rating: 8] Favorites ----------- Power Ion Engine Engine Ion Engine Propulsion Wheel Wheel Wheel Utility Improved Signal Interpreter Storage High-capacity Storage Unit Processor Improved Signal Interpreter Weapon Grenade Launcher Launcher Grenade Launcher Build | -11 -10 -10 -10 -9 ------- Run | Scr Mat Min Exi Min Slots Evolved . | . . . . . Power . | . . . . . Propulsion . | . . . . . Utility . | . . . . . Weapon . | . . . . . Parts Attached 14 | 2 9 . 1 2 Power 1 | . . . . 1 Engine 1 | . . . . 1 Core . | . . . . . Reactor . | . . . . . Propulsion 2 | . 2 . . . Treads . | . . . . . Leg . | . . . . . Wheel 2 | . 2 . . . Hover . | . . . . . Flight . | . . . . . Utility 3 | . 2 . 1 . Device . | . . . . . Storage 1 | . . . 1 . Processor 2 | . 2 . . . Hackware . | . . . . . Protection . | . . . . . Artifact . | . . . . . Weapon 8 | 2 5 . . 1 Energy Gun . | . . . . . Energy Cannon . | . . . . . Ballistic Gun . | . . . . . Ballistic Cannon . | . . . . . Launcher 8 | 2 5 . . 1 Special Weapon . | . . . . . Impact Weapon . | . . . . . Slashing Weapon . | . . . . . Piercing Weapon . | . . . . . Special Melee Weapon . | . . . . . Unidentified Prototypes . | . . . . . Parts Lost 4 | . 4 . . . Power . | . . . . . Propulsion . | . . . . . Utility 1 | . 1 . . . Weapon 3 | . 3 . . . Highest Loss Streak 3 | . 3 . . . Average Slot Usage (%) 53 | . 47 71 58 68 Wheel 18 | . 11 28 28 28 Storage 4 | . . . 11 14 Processor 14 | . 14 14 14 14 Launcher 15 | . 21 28 3 11 Naked Turns . | . . . . . Heaviest Build 33 | 6 6 6 32 33 Greatest Support 20 | 3 20 20 20 20 Greatest Overweight (x) 1 | 1 . . 1 1 Average Overweight (x) . | . . . . 1 Largest Inventory Capacity 12 | 4 4 4 12 12 Average Capacity 6 | 4 4 4 10 12 Most Carried 6 | 4 4 4 6 6 Average Carried 3 | 3 3 4 3 6 Final Capacity 12 | 4 4 4 12 12 Final Carried 6 | 4 4 4 6 6 Class Distribution -------------------- 100% | Mutant Dominant Class ---------------- Mutant | -10/Materials Mutant | -10/Mines Mutant | -10/Exiles Mutant | -9/Mines Resources | -11 -10 -10 -10 -9 ----------- Run | Scr Mat Min Exi Min Matter Collected 412 | 26 344 . . 42 Remotely . | . . . . . Salvage Created 266 | 26 227 . . 13 Parts 15 | . 15 . . . Haulers Intercepted 2 | . 2 . . . Recyclers Shooed 1 | . 1 . . . Parts Field Recycled . | . . . . . Retrieved Matter . | . . . . . Parts Self-Destructed . | . . . . . Prevented . | . . . . . Kills | -11 -10 -10 -10 -9 ------- Run | Scr Mat Min Exi Min Combat Hostiles Destroyed 8 | . 8 . . . Melee 1 | . 1 . . . AOE 7 | . 7 . . . Classes Destroyed 8 | 1 7 . . . Worker 2 | . 1 . . 1 Builder 1 | . 1 . . . Tunneler 2 | . 2 . . . Hauler 2 | . 2 . . . Recycler 1 | 1 . . . . Watcher 1 | . 1 . . . Swarmer 3 | . 3 . . . Grunt 5 | . 5 . . . Best Kill Streak 5 | 1 5 . . 1 Combat Bots Only 5 | . 5 . . . Max Kills in Single Turn 3 | 1 3 . . 1 Gunslinging . | . . . . . Exploded 2 | . 2 . . . Melee 1 | . 1 . . . Uniques/NPCs Destroyed . | . . . . . Combat | -11 -10 -10 -10 -9 -------- Run | Scr Mat Min Exi Min Damage Taken 521 | . 436 . . 85 Core 244 | . 178 . . 66 Absorbed by Shields . | . . . . . Core Remaining (%) 100 | 100 . . . . Volleys Fired 28 | 3 24 . . 1 Largest 2 | 1 2 . . 1 Hottest 60 | 30 60 . . 30 Shots Fired 32 | 3 28 . . 1 Gun . | . . . . . Cannon . | . . . . . Launcher 32 | 3 28 . . 1 Special . | . . . . . Kinetic . | . . . . . Thermal . | . . . . . Explosive 32 | 3 28 . . 1 Electromagnetic . | . . . . . Robot Hit Streak 10 | 3 10 . . 2 Robot Miss Streak 1 | . 1 . . . Penetration Max . | . . . . . Secondary Targets . | . . . . . Shots Hit Robots 26 | 3 22 . . 1 Core Hits 30 | 2 27 . . 1 Critical Hits . | . . . . . Critical Kills . | . . . . . Critical Parts Destroyed . | . . . . . Melee Attacks . | . . . . . Impact . | . . . . . Slashing . | . . . . . Piercing . | . . . . . Sneak Attacks . | . . . . . Combat Hostiles . | . . . . . Follow-up Attacks . | . . . . . Damage Inflicted 1540 | 90 1399 . . 51 Guns . | . . . . . Cannons . | . . . . . Explosions 1484 | 90 1362 . . 32 Melee . | . . . . . Ramming 56 | . 37 . . 19 Kinetic . | . . . . . Thermal . | . . . . . Explosive 1484 | 90 1362 . . 32 Electromagnetic . | . . . . . Impact . | . . . . . Slashing . | . . . . . Piercing . | . . . . . Highest Corruption 2 | . 2 2 2 2 Average Corruption 2 | . 2 2 2 2 Corruption Purged . | . . . . . Effects 8 | . 3 1 3 1 Message Errors 5 | . 3 . 1 1 Heat Flow Errors 1 | . . 1 . . Energy Discharges 1 | . . . 1 . Data Loss (minor) 1 | . . . 1 . Overload Shots . | . . . . . Overflow Damage 51 | . 51 . . . Projectiles . | . . . . . Explosions 51 | . 51 . . . Melee . | . . . . . Knockbacks . | . . . . . Impact . | . . . . . Kinetic . | . . . . . Secondary . | . . . . . Self-Inflicted Damage 188 | . 167 . . 21 Shots 10 | . 9 . . 1 Rammed 13 | . 12 . . 1 Targets Rammed 13 | . 12 . . 1 Kicked . | . . . . . Crushed . | . . . . . Highest Temperature 96 | . 5 96 . . Average Temperature 31 | . 3 58 . . Received Heat Transfer 143 | . 123 . . 20 Siege Activations . | . . . . . Robots Corrupted . | . . . . . Combat Hostiles . | . . . . . Parts Fried . | . . . . . Impact Corruptions . | . . . . . Robots Melted . | . . . . . Combat Hostiles . | . . . . . Parts Melted . | . . . . . Heat Transferred . | . . . . . Parts Sabotaged . | . . . . . Parts Stolen . | . . . . . Parts Stripped . | . . . . . Power Chain Reactions 1 | . 1 . . . Missiles Intercepted . | . . . . . Alert | -11 -10 -10 -10 -9 ------- Run | Scr Mat Min Exi Min Peak Influence 463 | 5 463 102 . 15 Initial 102 | . 3 102 . . Average 218 | 1 278 102 . 1 Maximum Alert Level 2 | . 2 . . . Low Security (%) 44 | 100 26 100 . 100 Level 1 29 | . 38 . . . Level 2 26 | . 35 . . . Level 3 . | . . . . . Level 4 . | . . . . . Level 5 . | . . . . . High Security . | . . . . . Max Security . | . . . . . Squads Dispatched 2 | . 2 . . . Investigation . | . . . . . Extermination . | . . . . . Reinforcement 2 | . 2 . . . Assault . | . . . . . Garrison . | . . . . . Intercept . | . . . . . Construction Impeded . | . . . . . Haulers Reinforced . | . . . . . Stealth | -11 -10 -10 -10 -9 --------- Run | Scr Mat Min Exi Min Distress Signals 3 | . 3 . . . Communications Jammed . | . . . . . Distress Signals . | . . . . . Times Spotted 22 | . 18 . . 4 Peak Tracking Total 6 | . 6 . . 4 Tactical Retreats 5 | . 5 . . . Traps | -11 -10 -10 -10 -9 ------- Run | Scr Mat Min Exi Min Traps Triggered . | . . . . . Indirectly . | . . . . . Trap Hack Attempts . | . . . . . Triggered . | . . . . . Disarmed . | . . . . . Reprogrammed . | . . . . . Reused . | . . . . . Traps Extracted . | . . . . . Installed . | . . . . . Triggered . | . . . . . Machines | -11 -10 -10 -10 -9 ---------- Run | Scr Mat Min Exi Min Machines Disabled 4 | . 4 . . . Max in Single Turn 2 | . 2 . . . Machines Sabotaged . | . . . . . Garrisons Compromised . | . . . . . Overloaded Fab Kills . | . . . . . Fab Network Shutdowns . | . . . . . Hacking | -11 -10 -10 -10 -9 --------- Run | Scr Mat Min Exi Min Machines Accessed 8 | . 7 . 1 . Terminals 5 | . 5 . . . Fabricators . | . . . . . Repair Stations . | . . . . . Recycling Units 2 | . 2 . . . Scanalyzers . | . . . . . Garrison Access . | . . . . . Total Hacks 15 | . 14 . 1 . Successful 10 | . 9 . 1 . Failed 5 | . 5 . . . Catastrophic . | . . . . . Database Lockouts . | . . . . . Manual 1 | . 1 . . . Terminals 10 | . 10 . . . Fabricators . | . . . . . Repair Stations . | . . . . . Recycling Units 4 | . 4 . . . Scanalyzers . | . . . . . Garrison Access . | . . . . . Terminal Hacks 7 | . 6 . 1 . Record 1 | . . . 1 . Branch Access Points 1 | . 1 . . . Emergency Access Points 3 | . 3 . . . Locate Traps 2 | . 2 . . . Fabricator Hacks . | . . . . . Repair Station Hacks . | . . . . . Recycling Unit Hacks 3 | . 3 . . . Process 2 | . 2 . . . Retrieve Matter 1 | . 1 . . . Scanalyzer . | . . . . . Garrison Access Hacks . | . . . . . Unauthorized Hacks . | . . . . . Terminals . | . . . . . Fabricators . | . . . . . Repair Stations . | . . . . . Recycling Units . | . . . . . Scanalyzers . | . . . . . Garrison Access . | . . . . . Data Cores Recovered . | . . . . . Used . | . . . . . Hacking Detections 5 | . 5 . . . Full Trace Events . | . . . . . Feedback Events . | . . . . . Feedback Blocked . | . . . . . Robot Schematics Acquired . | . . . . . Robots Built . | . . . . . Matter . | . . . . . Time . | . . . . . Total Robot Build Rating . | . . . . . Part Schematics Acquired . | . . . . . Parts Built . | . . . . . Matter . | . . . . . Time . | . . . . . Total Part Build Rating . | . . . . . Parts Repaired . | . . . . . Time . | . . . . . Parts Recycled . | . . . . . Recycled Matter 11 | . 11 . . . Retrieved Matter 6 | . 6 . . . Retrieved Components . | . . . . . Parts Scanalyzed . | . . . . . Part Schematics Acquired . | . . . . . Parts Damaged . | . . . . . Bothacking | -11 -10 -10 -10 -9 ------------ Run | Scr Mat Min Exi Min Used RIF Installer . | . . . . . Robots Hacked . | . . . . . Non-combat . | . . . . . Combat . | . . . . . Robot Hacks Applied . | . . . . . Relay Couplers Released . | . . . . . Robots Rewired . | . . . . . Allies Hacked . | . . . . . Hacks Repelled . | . . . . . Allies | -11 -10 -10 -10 -9 -------- Run | Scr Mat Min Exi Min Total Allies 3 | . . 3 . . Largest Group 3 | . . 3 3 3 Highest-Rated Group 40 | . . 40 40 40 Highest-Rated Ally 16 | . . 16 16 16 Total Orders . | . . . . . Ally Attacks 10 | . . . . 10 Total Damage 116 | . . . . 116 Kills 1 | . . . . 1 Allies Corrupted . | . . . . . Allies Melted . | . . . . . Intel | -11 -10 -10 -10 -9 ------- Run | Scr Mat Min Exi Min Robot Analysis Total . | . . . . . Derelict Logs Recovered . | . . . . . Drone Launches . | . . . . . Drone Recoveries . | . . . . . Exploration | -11 -10 -10 -10 -9 ------------- Run | Scr Mat Min Exi Min Turns Passed 842 | 51 442 50 255 44 Spaces Moved 940 | 34 538 50 276 42 Core 313 | 34 279 . . . Treads . | . . . . . Legs . | . . . . . Wheels 627 | . 259 50 276 42 Hover . | . . . . . Flight . | . . . . . Fastest Speed 50 | 50 50 80 80 90 Average Speed 73 | 63 64 80 88 90 Slowest Speed 100 | 100 80 80 90 90 Overloaded Moves . | . . . . . Propulsion Burnouts . | . . . . . Robots Hopped . | . . . . . Cave-ins Triggered . | . . . . . Exploration Rate (%) 37 | 3 92 16 65 10 Regions Visited 4 Branch Regions 3 Pre-discovered Areas 1 | . . . 1 . Known Exits Taken 3 | . 1 1 1 . Unknown Exits Taken 1 | 1 . . . . Scrap Searched . | . . . . . Spaces Dug . | . . . . . Terrain Destroyed 154 | 25 116 . . 13 Melee . | . . . . . Projectile . | . . . . . AOE 154 | 25 116 . . 13 Terrain Rammed . | . . . . . Walls Destroyed . | . . . . . Machines Disabled . | . . . . . Actions | -11 -10 -10 -10 -9 --------- Run | Scr Mat Min Exi Min Total 1054 | 59 603 59 287 46 Wait 45 | 16 13 10 6 . Move 936 | 33 537 49 275 42 Hop . | . . . . . Pick Up 13 | 4 6 . 3 . Fast Attach 8 | 2 4 . . 2 Attach 5 | . 4 . 1 . Detach . | . . . . . Swap 1 | . 1 . . . Drop 5 | 1 2 . 2 . Fire 28 | 3 24 . . 1 Melee . | . . . . . Ram 13 | . 12 . . 1 Kick . | . . . . . Crush . | . . . . . Escape Stasis . | . . . . . Rewire . | . . . . . Trap . | . . . . . Miscellaneous . | . . . . . Route ------- -11/Scrapyard -10/Materials (discovered 4 exits: *Mat x3 / *Min) -10/Mines -10/Exiles (discovered 2 exits: *Min x2) -9/Mines History --------- Turn | Location | Event 10 | -11/Scrapyard | Discovered new exit (range 14) 52 | -11/Scrapyard | Entered Materials 131 | -10/Materials | Identified exit to Mines 140 | -10/Materials | Discovered new exit (range 4) 170 | -10/Materials | Core integrity fell below 50% 203 | -10/Materials | Lost 3 parts (1u2w) 228 | -10/Materials | Discovered new exit (range 13) 308 | -10/Materials | Identified exit to Materials 313 | -10/Materials | Build established: Mutant 394 | -10/Materials | Discovered exit to Materials (range 14) 494 | -10/Materials | Entered Mines 510 | -10/Mines | Assisted by bots powering up and referring to "LRC-V3" 525 | -10/Mines | Met a Derelict bent on vengeance 525 | -10/Mines | Found a hidden stash of uninstalled traps 531 | -10/Mines | Deemed a non-threat by the Exiles lab entrance 531 | -10/Mines | Discovered new exit (range 5) 533 | -10/Mines | Identified exit to Exiles 544 | -10/Mines | Entered Exiles 544 | -10/Exiles | Accompanied by 3 allies 555 | -10/Exiles | Discovered new exit (range 15) 565 | -10/Exiles | Met 8R-AWN 578 | -10/Exiles | Met EX-HEX 621 | -10/Exiles | Met EX-DEC 637 | -10/Exiles | Learned location of Zion (-6) 695 | -10/Exiles | Met EX-BIN 708 | -10/Exiles | Aligned with FarCom system 709 | -10/Exiles | Given EX-Vault access code 782 | -10/Exiles | Discovered new exit (range 12) 790 | -10/Exiles | Identified exit to Mines 799 | -10/Exiles | Entered Mines 799 | -9/Mines | Accompanied by 3 allies 805 | -9/Mines | Assembled infested the area 810 | -9/Mines | Assisted by a Guerilla fighting off Assembled 843 | -9/Mines | Core integrity fell below 20% 843 | -9/Mines | Self-destructed Last Messages --------------- 00782_ EXIT=FOUND 00790_ EXIT=IDENTIFIED: MINES LOCATION=MINES GOAL=ESCAPE 00799_ Receiving FarCom transmissions... 00802_ Acquired Mni. Grenade Launcher. 00805_ ALERT: Infestation in the mines, dispatching Demolisher response squad. 00810_ A derelict emerges from the shadows: "You need to get out of here! I've been tracking a group of Assembled to figure out where they're coming from, and they're closing on this area, come on!" 00816_ K-01 Serf collects debris. 00822_ Slammed into K-01 Serf. 00822_ K-01 Serf destroyed. 00823_ Acquired 13 matter. 00829_ Y0RGIJ3YMXA/ PU,VLUBXEHUMO9 DKPJHTUXZEK 00834_ K-01 Serf cleans the Laser Drill. 00840_ Acquired 29 matter. 00841_ K-01 Serf collects debris. 00842_ Acquired Ion Engine. Map ----- +----------------------------------------------------+ | | | | | | | | | | | | | | | ?????????????????????????????????????????????????? | | ?????????????????????????????????????????????????? | | ?????????????????????????????????????????????????? | | ?????????????????????????????????????????????????? | | ?????????????????????????????????????????????????? | | ?????????????????????????????????????????????????? | | ?????????????????????????????????????????????????? | | ?????????????????????????????????????????????????? | | ?????????????????????????????????????????????????? | | ?????????????????????????????????????????????????? | | ?????????????????????????????????????????????????? | | ?????????????????????????????????????????????????? | | ?????????????????????????????????????????????????? | | ???????????? #######??????????????????????s?????? | | ?????????? ]=!! ???#####??#####????????????? | | ???????????? !%* #### ##?# ?????????????? | | ???????????????????# !aa ### #??????????????? | | ???????????????????# %aa #??????????????? | | ???????????##############@ #####??????????????? | | ??????????? ## ##??????????????????? | | ??????????# """ """ ### #???????????????????? | | ??????????# """ """ k #???????????????????? | | ??????????# """ """ # #???????????????????? | | ??????????# ##### ##???????????????????? | | ??????????# """ """ #???#####????????????????????? | | ??????????# """ """ #????????????????????????????? | | ??????????# """ """ #????????????????????????????? | | ??????????? #????????????????????????????? | | ???????????##########????????????????????????????? | | ?????????????????????????????????????????????????? | | ?????????????????????????????????????????????????? | | ?????????????????????????????????????????????????? | | ?????????????????????????????????????????????????? | | ?????????????????????????????????????????????????? | | ?????????????????????????????????????????????????? | | ?????????????????????????????????????????????????? | | ?????????????????????????????????????????????????? | | ?????????????????????????????????????????????????? | | ?????????????????????????????????????????????????? | | ?????????????????????????????????????????????????? | | ?????????????????????????????????????????????????? | | ?????????????????????????????????????????????????? | | ?????????????????????????????????????????????????? | +----------------------------------------------------+ Best States ------------- Heat Dissipation 25 Energy Generation 5 Energy Capacity 100 Matter Stores 110 Matter Capacity 300 Sight Range 16 Terrain Scan Density 10 Evasion (%) 50 Item Schematics ----------------- None Robot Schematics ------------------ None Fabricated ------------ Nothing Alien Tech Used ----------------- None Achievements -------------- None Challenges ------------ None Game ------ Seed BiocellChipScanner Manual? 0 Play Time 00:20:21 Cumulative 344.3 hours Start 2020.12.27 @ 23:33:57 End 2020.12.28 @ 00:06:29 Sessions 1 Manual Loads 0 Difficulty Rogue Special Mode AFD2018/Launchers Game No. 140 Rogue 104 Adventurer 36 Explorer 0 Win Type - Total 11 Types 11/0/0/0/0/0/0/0/0 Lore% 52 Gallery% 58 Achievement% 43 Wizard Run 0 Options --------- ASCII 0 Keyboard 1 Movement Vi Keybinds 0 Fullscreen 1 Font 18/Terminus Map View 76x50 Tactical HUD 1 Map Filters NONE Filters NONE Steam 0 RUN: eee362c4-5f01-4ea5-b77b-c15fe427c5b1